fUSD/lending_fUSD_20250804
["ID","MTS","AMOUNT","RATE_DAILY","PERIOD"]
[377304207,1754326272314,-844.34,0.00054794,120]
[377304208,1754326272324,-494.2,0.00054794,120]
[377304209,1754326272336,-4985.21,0.00054794,120]
[377304210,1754326272346,-400.0,0.00054794,120]
[377304211,1754326272356,-500.0,0.00054794,120]
[377304212,1754326272366,-4975.529291,0.00054794,120]
[377304213,1754326272376,-11175.18,0.00054794,120]
[377304214,1754326272386,-1487.16,0.00054794,120]
[377304215,1754326272395,-1461.6,0.00054794,120]
[377304216,1754326272406,-554.41,0.00054794,120]
[377304217,1754326272415,-2754.46,0.00054794,120]
[377304218,1754326272425,-2463.97,0.00054794,120]
[377304219,1754326272435,-400.0,0.00054794,120]
[377304220,1754326272445,-400.0,0.00054794,120]
[377304221,1754326272455,-400.0,0.00054794,120]
[377304222,1754326272465,-229.927813,0.00054794,120]
[377304223,1754326272475,-2374.15,0.00054794,120]
[377304224,1754326272485,-3467.87,0.00054794,120]
[377304225,1754326272496,-1761.45,0.00054794,120]
[377304226,1754326272507,-568.73,0.00054794,120]
[377304227,1754326272517,-390.34668858,0.00054794,120]
[377304228,1754326272527,-780.42,0.00054794,120]
[377304229,1754326272537,-1435.66921558,0.00054794,120]
[377304230,1754326272602,-3693.07663997,0.00054794,120]
[377304231,1754326272614,-913.37827643,0.00054794,120]
[377304232,1754326272745,-388.54959202,0.00054794,120]
[377304233,1754326272756,-37.75040648,0.00054794,120]
[377304234,1754326272769,-192.17740652,0.00054794,120]
[377304235,1754326272782,-400.0,0.00054794,120]
[377304236,1754326272793,-229.927813,0.00054794,120]
[377304237,1754326272805,-400.0,0.00054794,120]
[377304238,1754326272816,-7568.79,0.00054794,120]
[377304239,1754326272828,-2841.39,0.00054794,120]
[377304240,1754326272840,-400.0,0.00054794,120]
[377304241,1754326272850,-2202.88222445,0.00054794,120]
[377304242,1754326274430,-21419.0,0.0004911,2]
[377304243,1754326274440,-1776.0,0.00053176,120]
[377304244,1754326274451,-888.0,0.0005403,8]
[377304245,1754326274462,-926.04777555,0.00054794,120]
[377304246,1754326274473,-400.0,0.00054794,120]
[377304247,1754326274483,-3646.8,0.00054794,120]
[377304248,1754326274494,-6698.11,0.00054794,120]
[377304249,1754326274505,-229.927813,0.00054794,120]
[377304250,1754326274517,-300.0,0.00054794,120]
[377304251,1754326274528,-229.927813,0.00054794,120]
[377304252,1754326274539,-229.927813,0.00054794,120]
[377304253,1754326274550,-4916.05,0.00054794,120]
[377304254,1754326274561,-1046.5,0.00054794,120]
[377304255,1754326274572,-4916.05,0.00054794,120]
[377304256,1754326274583,-1317.62,0.00054794,120]
[377304257,1754326274594,-4916.05,0.00054794,120]
[377304258,1754326274605,-2376.43,0.00054794,120]
[377304259,1754326274615,-400.0,0.00054794,120]
[377304260,1754326274626,-4916.05,0.00054794,120]
[377304261,1754326274637,-400.0,0.00054794,120]
[377304262,1754326274648,-4916.05,0.00054794,120]
[377304263,1754326274658,-4916.05,0.00054794,120]
[377304264,1754326274670,-4916.05,0.00054794,120]
[377304265,1754326274680,-4916.05,0.00054794,120]
[377304266,1754326274691,-400.0,0.00054794,120]
[377304267,1754326274701,-4023.94,0.00054794,120]
[377304268,1754326274712,-4916.05,0.00054794,120]
[377304269,1754326274723,-4916.05,0.00054794,120]
[377304270,1754326274734,-4916.05,0.00054794,120]
[377304271,1754326274745,-400.0,0.00054794,120]
[377304272,1754326274755,-209.478363,0.00054794,120]
[377304273,1754326274768,-4916.05,0.00054794,120]
[377304274,1754326274779,-400.0,0.00054794,120]
[377304275,1754326274790,-1259.36,0.00054794,120]
[377304276,1754326274800,-4916.05,0.00054794,120]
[377304277,1754326274811,-400.0,0.00054794,120]
[377304278,1754326274822,-514.73153906,0.00054794,120]
[377304279,1754326274833,-400.0,0.00054794,120]
[377304280,1754326274844,-3628.15112807,0.00054794,120]
[377304281,1754326274878,-21272.7396607,0.0005211,120]
[377304282,1754326274891,-146.2603393,0.0005211,120]
[377304283,1754326274901,-778.5856607,0.00054794,120]
[377304284,1754326274914,-373.76930077,0.00054794,120]
[377304285,1754326274929,-135.54391046,0.00054794,120]
[377304286,1754326274940,-1828.25608954,0.00054794,120]
[377304287,1754326274952,-3087.79391046,0.00054794,120]
[377304288,1754326274963,-509.07,0.00054794,120]
[377304289,1754326274974,-4916.05,0.00054794,120]
[377304290,1754326274986,-4916.05,0.00054794,120]
[377304291,1754326274998,-4916.05,0.00054794,120]
[377304292,1754326275011,-3475.09448215,0.00054794,120]
[377304293,1754326275024,-530.68950051,0.00054794,120]
[377304294,1754326275415,-910.26601734,0.00054794,120]
[377304295,1754326275463,-231.40724316,0.00054794,120]
[377304619,1754326770043,154.36,0.00013699,2]
[377304651,1754326930359,3500.0,0.00030136,120]
[377304704,1754327158207,250.0,0.00015,2]
[377304707,1754327181387,2203.35945686,0.00030136,120]
[377304743,1754327349919,-744.1,0.0002985,6]
[377304744,1754327349943,-154.36,0.00031311,2]
[377304745,1754327349968,-150.0,0.00038356,12]
[377304746,1754327349991,-66.56197701,0.00038899,5]
[377304781,1754327431922,-4155.97564223,0.00038119,30]
[377304783,1754327431932,-1299.26033163,0.000389,39]
[377304784,1754327431941,-1299.26033145,0.00039486,40]
[377304785,1754327431951,-2200.0,0.0004007,5]
[377304786,1754327431961,-1299.26033145,0.00040072,41]
[377304787,1754327431970,-300.0,0.00040309,5]
[377304788,1754327431979,-550.0,0.00040309,5]
[377304789,1754327431989,-159.42,0.0004031,2]
[377304790,1754327431999,-1299.26033145,0.00040659,43]
[377304791,1754327432008,-200.0,0.00041,7]
[377304792,1754327432019,-1299.26033145,0.00041245,44]
[377304793,1754327432028,-150.0,0.00041401,120]
[377304794,1754327432037,-241.64,0.00041515,120]
[377304795,1754327432047,-159.42,0.0004168,2]
[377304796,1754327432056,-1299.26033145,0.00041831,45]
[377304797,1754327432065,-1299.26033145,0.00042417,46]
[377304798,1754327432075,-350.0,0.00042895,5]
[377304799,1754327432084,-770.0,0.00042982,5]
[377304800,1754327432094,-1299.26033145,0.00043003,47]
[377304801,1754327432103,-159.42,0.00043049,2]
[377304802,1754327432113,-241.64,0.00043246,120]
[377304803,1754327432122,-1299.26033145,0.0004359,48]
[377304804,1754327432131,-976.0,0.00043834,5]
[377304805,1754327432141,-999.0,0.00043835,120]
[377304806,1754327432150,-850.0,0.00043835,4]
[377304807,1754327432160,-176.51,0.00044071,2]
[377304808,1754327432169,-1299.26033145,0.00044176,50]
[377304809,1754327432179,-159.42,0.00044419,2]
[377304810,1754327432189,-10000.0,0.000447,30]
[377304811,1754327432199,-189.849,0.000447,71]
[377304812,1754327432208,-1138.503,0.000447,71]
[377304813,1754327432218,-211.425049,0.00044747,2]
[377304814,1754327432228,-631.23631319,0.00044754,2]
[377304815,1754327432237,-1299.26033145,0.00044762,51]
[377304816,1754327432247,-500.0,0.00044873,10]
[377304817,1754327432256,-241.64,0.00044976,120]
[377304818,1754327432265,-999.0,0.00045205,120]
[377304819,1754327432275,-1299.26033145,0.00045348,52]
[377304820,1754327432285,-1000.0,0.00045549,2]
[377304822,1754327432295,-190.45,0.0004566,2]
[377304824,1754327432304,-152.0,0.00045682,3]
[377304826,1754327432314,-251.02,0.00045686,2]
[377304828,1754327432324,-247.7,0.00045693,120]
[377304829,1754327432333,-159.42,0.00045789,2]
[377304831,1754327432343,-150.0,0.00045792,2]
[377304833,1754327432352,-150.0,0.00045792,120]
[377304835,1754327432362,-300.0,0.00045833,5]
[377304836,1754327432372,-1000.0,0.00045842,2]
[377304837,1754327432381,-1299.26033145,0.00045934,53]
[377304838,1754327432391,-1299.26033145,0.00046521,54]
[377304840,1754327432401,-500.0,0.00046575,2]
[377304842,1754327432411,-999.0,0.00046575,120]
[377304844,1754327432420,-1000.0,0.000466,2]
[377304846,1754327432430,-266.0,0.000466,120]
[377304848,1754327432440,-5000.0,0.00046698,120]
[377304850,1754327432450,-241.64,0.00046706,120]
[377304851,1754327432460,-13243.66,0.00046912,2]
[377304852,1754327432469,-1000.0,0.00047033,120]
[377304853,1754327432479,-1891.73,0.00047045,2]
[377304854,1754327432488,-895.85,0.00047091,2]
[377304855,1754327432497,-1672.52,0.00047091,120]
[377304856,1754327432507,-1299.26033145,0.00047107,55]
[377304857,1754327432516,-159.42,0.00047159,2]
[377304858,1754327432526,-5358.81,0.00047164,2]
[377304859,1754327432535,-23900.0,0.00047507,2]
[377304860,1754327432544,-888.0,0.00047593,3]
[377304861,1754327432554,-1299.26033145,0.00047693,56]
[377304862,1754327432563,-10000.0,0.000477,30]
[377304863,1754327432571,-999.0,0.00047945,120]
[377304864,1754327432582,-600.0,0.0004799,120]
[377304865,1754327432592,-114.43755343,0.00048,2]
[377304866,1754327432654,-95.03244657,0.00048,2]
[377304867,1754327432667,-1299.26033145,0.00048279,58]
[377304868,1754327432678,-241.64,0.00048437,120]
[377304869,1754327432689,-816.23,0.00048493,120]
[377304870,1754327432699,-600.0,0.00048499,18]
[377304871,1754327432709,-600.0,0.00048499,18]
[377304872,1754327432719,-600.0,0.00048499,18]
[377304873,1754327432728,-364.43942107,0.00048499,18]
[377304874,1754327432756,-235.56057893,0.00048499,18]
[377304875,1754327432767,-420.01047106,0.00048499,18]
[377304876,1754327432847,-179.98952894,0.00048499,18]
[377304877,1754327432856,-600.0,0.00048499,18]
[377304878,1754327432865,-600.0,0.00048499,18]
[377304879,1754327432875,-262.88885704,0.00048499,18]
[377304880,1754327432895,-337.11114296,0.00048499,18]
[377304881,1754327432904,-7.62114704,0.00048499,18]
[377304882,1754327432916,-592.37885296,0.00048499,18]
[377304883,1754327432926,-552.62114704,0.00048499,18]
[377304884,1754327432938,-47.37885296,0.00048499,18]
[377304885,1754327432947,-600.0,0.00048499,38]
[377304886,1754327432957,-1376.0,0.000485,2]
[377304887,1754327432966,-6070.0,0.00048526,2]
[377304888,1754327432975,-4131.0,0.00048526,2]
[377304889,1754327432985,-6686.638,0.00048526,2]
[377304890,1754327432994,-159.42,0.00048529,2]
[377304891,1754327433004,-152.83,0.00048609,120]
[377304892,1754327433013,-1299.26033145,0.00048866,59]
[377304893,1754327433025,-154.36,0.00048924,2]
[377304894,1754327433035,-190.45,0.00049085,2]
[377304895,1754327433046,-1000.0,0.000493,2]
[377304896,1754327433055,-300.0,0.00049315,30]
[377304897,1754327433064,-999.0,0.00049315,120]
[377304898,1754327433075,-152.3,0.00049382,120]
[377304899,1754327433084,-1299.26033145,0.00049452,60]
[377304900,1754327433094,-2500.0,0.00049459,2]
[377304901,1754327433104,-160.34592005,0.0004951,120]
[377304902,1754327433113,-5387.06205895,0.00049559,7]
[377304903,1754327433150,-693.1571524,0.00049559,7]
[377304904,1754327433170,-521.26752604,0.00049559,7]
[377304905,1754327433183,-3336.99263705,0.00049559,7]
[377304906,1754327433195,-511.47952386,0.00049559,7]
[377304921,1754327438024,-175.0,0.00045689,7]
[377304922,1754327438033,-888.0,0.000471,3]
[377304923,1754327438043,-1776.0,0.0004934,3]
[377304924,1754327438052,-11927.2611017,0.00049559,7]
[377304925,1754327438062,-888.0,0.0004961,3]
[377304926,1754327438071,-250.0,0.00049668,2]
[377304927,1754327438080,-192.891,0.00049668,2]
[377304928,1754327438090,-200.677,0.00049668,2]
[377304929,1754327438099,-250.0,0.00049668,2]
[377304930,1754327438109,-1776.0,0.00049833,3]
[377304931,1754327438119,-888.0,0.00049833,3]
[377304932,1754327438128,-200.0,0.0004984,2]
[377304934,1754327438138,-1600.0,0.00049843,120]
[377304936,1754327438148,-500.0,0.00049888,120]
[377304938,1754327438157,-165.28,0.00049894,2]
[377304940,1754327438167,-159.42,0.00049899,2]
[377304942,1754327438176,-150.99,0.0004996,2]
[377304944,1754327438185,-154.25902879,0.0005,120]
[377304946,1754327438195,-1000.0,0.0005,120]
[377304948,1754327438204,-153.85,0.0005,120]
[377304950,1754327438214,-530.15,0.0005,120]
[377304952,1754327438225,-400.0,0.0005,120]
[377304954,1754327438234,-80.91421334,0.0005,120]
[377304959,1754327438262,-319.08578666,0.0005,120]
[377304961,1754327438273,-58.48095437,0.00050038,61]
[377304967,1754327438292,-762.10056781,0.00050038,61]
[377304970,1754327438308,-332.73380182,0.00050038,61]
[377304975,1754327438319,-145.94500745,0.00050038,61]
[377304977,1754327438329,-150.0,0.00050058,120]
[377304979,1754327438338,-500.0,0.00050162,120]
[377304981,1754327438347,-241.64,0.00050167,120]
[377304983,1754327438356,-152.0,0.0005038,4]
[377304985,1754327438366,-1145.88850337,0.000504,2]
[377304987,1754327438376,-500.0,0.00050436,120]
[377304989,1754327438387,-151.0,0.00050442,120]
[377304991,1754327438398,-500.0,0.00050442,120]
[377304993,1754327438408,-160.34592005,0.00050547,120]
[377304995,1754327438417,-1299.26033145,0.00050624,62]
[377304997,1754327438427,-999.0,0.00050684,120]
[377304999,1754327438437,-7347.57298896,0.00050684,15]
[377305001,1754327438446,-500.0,0.0005071,120]
[377305002,1754327438455,-295.121,0.00050785,120]
[377305005,1754327438465,-253.434,0.00050785,120]
[377305006,1754327438475,-185.749,0.00050785,120]
[377305008,1754327438484,-250.0,0.00050785,120]
[377305010,1754327438494,-206.376,0.00050785,120]
[377305013,1754327438504,-159.461,0.00050785,120]
[377305014,1754327438514,-204.085,0.00050785,120]
[377305016,1754327438523,-151.0,0.00050785,2]
[377305018,1754327438532,-458.324,0.00050785,120]
[377305020,1754327438542,-1651.0,0.00050785,120]
[377305022,1754327438551,-1169.0,0.00050785,120]
[377305024,1754327438560,-892.0,0.00050785,120]
[377305026,1754327438569,-163.77991266,0.00050892,15]
[377305028,1754327438579,-3323.88155882,0.00050892,120]
[377305030,1754327438594,-1676.11844118,0.00050892,120]
[377305033,1754327438603,-888.0,0.00050936,120]
[377305035,1754327438613,-250.0,0.00050946,120]
[377305037,1754327438623,-500.0,0.00050973,10]
[377305038,1754327438633,-500.0,0.00050973,10]
[377305040,1754327438642,-500.0,0.00050973,10]
[377305042,1754327438652,-500.0,0.00050973,10]
[377305044,1754327438662,-500.0,0.00050973,10]
[377305046,1754327438673,-500.0,0.00050973,10]
[377305048,1754327438683,-500.74461606,0.00050973,10]
[377305051,1754327438693,-12056.13101383,0.00050982,4]
[377305173,1754327439868,-888.0,0.000476,3]
[377305175,1754327439879,-862.0,0.00048526,2]
[377305177,1754327439889,-1776.0,0.0004984,3]
[377305179,1754327439899,-596.72544601,0.00050982,4]
[377305181,1754327439911,-3259.00801453,0.00050982,4]
[377305183,1754327439923,-458.85163228,0.00050982,4]
[377305186,1754327439943,-1104.80047542,0.00050982,4]
[377305189,1754327439955,-2002.5243904,0.00050982,4]
[377305191,1754327439967,-48097.02024293,0.00050982,4]
[377305193,1754327439977,-500.0,0.00050984,120]
[377305195,1754327439987,-1010.91840273,0.00050991,120]
[377305197,1754327439997,-500.0,0.00050992,120]
[377305199,1754327440008,-500.0,0.00050992,120]
[377305201,1754327440018,-500.0,0.00050992,120]
[377305203,1754327440029,-500.0,0.00050992,120]
[377305205,1754327440039,-500.0,0.00050992,120]
[377305207,1754327440049,-500.0,0.00050992,120]
[377305209,1754327440059,-500.0,0.00050992,120]
[377305212,1754327440079,-500.0,0.00050992,120]
[377305214,1754327440090,-500.0,0.00050992,120]
[377305217,1754327440100,-500.0,0.00050992,120]
[377305219,1754327440110,-500.0,0.00050992,120]
[377305221,1754327440120,-500.0,0.00050992,120]
[377305223,1754327440130,-500.0,0.00050992,120]
[377305225,1754327440140,-500.0,0.00050992,120]
[377305227,1754327440151,-986.0,0.00050992,120]
[377305229,1754327440161,-500.0,0.00050992,120]
[377305231,1754327440170,-500.0,0.00050992,120]
[377305233,1754327440181,-500.0,0.00050992,120]
[377305235,1754327440191,-500.0,0.00050992,120]
[377305237,1754327440201,-500.0,0.00050992,120]
[377305239,1754327440211,-500.0,0.00050992,120]
[377305241,1754327440221,-500.0,0.00050992,120]
[377305243,1754327440231,-500.0,0.00050992,120]
[377305245,1754327440241,-500.0,0.00050992,120]
[377305248,1754327440251,-500.0,0.00050992,120]
[377305249,1754327440261,-500.0,0.00050992,120]
[377305252,1754327440271,-500.0,0.00050992,120]
[377305253,1754327440282,-500.0,0.00050992,120]
[377305256,1754327440292,-500.0,0.00050992,120]
[377305257,1754327440301,-500.0,0.00050992,120]
[377305259,1754327440311,-500.0,0.00050992,120]
[377305261,1754327440320,-500.0,0.00050992,120]
[377305263,1754327440330,-500.0,0.00050992,120]
[377305265,1754327440339,-500.0,0.00050992,120]
[377305266,1754327440348,-500.0,0.00050992,120]
[377305267,1754327440358,-500.0,0.00050992,120]
[377305268,1754327440367,-500.0,0.00050992,120]
[377305269,1754327440376,-500.0,0.00050992,120]
[377305270,1754327440386,-500.0,0.00050992,120]
[377305271,1754327440395,-500.0,0.00050992,120]
[377305272,1754327440404,-500.0,0.00050992,120]
[377305273,1754327440413,-500.0,0.00050992,120]
[377305274,1754327440422,-500.0,0.00050992,120]
[377305275,1754327440434,-500.0,0.00050992,120]
[377305276,1754327440443,-500.0,0.00050992,120]
[377305277,1754327440452,-500.0,0.00050992,120]
[377305279,1754327440462,-500.0,0.00050992,120]
[377305281,1754327440472,-500.0,0.00050992,120]
[377305283,1754327440481,-500.0,0.00050992,120]
[377305285,1754327440492,-500.0,0.00050992,120]
[377305286,1754327440501,-500.0,0.00050992,120]
[377305288,1754327440510,-500.0,0.00050992,120]
[377305290,1754327440520,-500.0,0.00050992,120]
[377305292,1754327440533,-500.0,0.00050992,120]
[377305294,1754327440543,-500.0,0.00050992,120]
[377305296,1754327440553,-500.0,0.00050992,120]
[377305298,1754327440563,-500.0,0.00050992,120]
[377305300,1754327440573,-500.0,0.00050992,120]
[377305303,1754327440584,-500.0,0.00050992,120]
[377305304,1754327440595,-500.0,0.00050992,120]
[377305306,1754327440606,-500.0,0.00050992,120]
[377305308,1754327440616,-500.0,0.00050992,120]
[377305310,1754327440626,-500.0,0.00050992,120]
[377305312,1754327440636,-500.0,0.00050992,120]
[377305314,1754327440645,-500.0,0.00050992,120]
[377305317,1754327440656,-500.0,0.00050992,120]
[377305319,1754327440669,-500.0,0.00050992,120]
[377305321,1754327440679,-500.0,0.00050992,120]
[377305323,1754327440689,-500.0,0.00050992,120]
[377305325,1754327440698,-500.0,0.00050992,120]
[377305327,1754327440708,-500.0,0.00050992,120]
[377305329,1754327440718,-500.0,0.00050992,120]
[377305331,1754327440727,-500.0,0.00050992,120]
[377305333,1754327440737,-500.0,0.00050992,120]
[377305334,1754327440747,-500.0,0.00050992,120]
[377305335,1754327440757,-500.0,0.00050992,120]
[377305336,1754327440766,-500.0,0.00050992,120]
[377305337,1754327440776,-500.0,0.00050992,120]
[377305338,1754327440786,-500.0,0.00050992,120]
[377305339,1754327440796,-500.0,0.00050992,120]
[377305340,1754327440806,-500.0,0.00050992,120]
[377305341,1754327440815,-500.0,0.00050992,120]
[377305342,1754327440826,-500.0,0.00050992,120]
[377305343,1754327440835,-500.0,0.00050992,120]
[377305344,1754327440845,-500.0,0.00050992,120]
[377305345,1754327440854,-500.0,0.00050992,120]
[377305346,1754327440863,-500.0,0.00050992,120]
[377305347,1754327440873,-500.0,0.00050992,120]
[377305348,1754327440883,-500.0,0.00050992,120]
[377305349,1754327440893,-500.0,0.00050992,120]
[377305350,1754327440902,-500.0,0.00050992,120]
[377305351,1754327440912,-500.0,0.00050992,120]
[377305352,1754327440922,-500.0,0.00050992,120]
[377305353,1754327440932,-500.0,0.00050992,120]
[377305354,1754327440942,-500.0,0.00050992,120]
[377305355,1754327440952,-500.0,0.00050992,120]
[377305356,1754327440962,-500.0,0.00050992,120]
[377305357,1754327440972,-500.0,0.00050992,120]
[377305358,1754327440981,-500.0,0.00050992,120]
[377305359,1754327440992,-500.0,0.00050992,120]
[377305360,1754327441001,-500.0,0.00050992,120]
[377305361,1754327441011,-500.0,0.00050992,120]
[377305362,1754327441021,-500.0,0.00050992,120]
[377305363,1754327441030,-500.0,0.00050992,120]
[377305364,1754327441040,-500.0,0.00050992,120]
[377305365,1754327441050,-500.0,0.00050992,120]
[377305366,1754327441060,-500.0,0.00050992,120]
[377305367,1754327441069,-500.0,0.00050992,120]
[377305368,1754327441079,-500.0,0.00050992,120]
[377305369,1754327441089,-500.0,0.00050992,120]
[377305370,1754327441099,-500.0,0.00050992,120]
[377305371,1754327441110,-500.0,0.00050992,120]
[377305372,1754327441120,-500.0,0.00050992,120]
[377305373,1754327441130,-500.0,0.00050992,120]
[377305374,1754327441139,-500.0,0.00050992,120]
[377305375,1754327441151,-500.0,0.00050992,120]
[377305376,1754327441160,-500.0,0.00050992,120]
[377305377,1754327441171,-500.0,0.00050992,120]
[377305378,1754327441181,-500.0,0.00050992,120]
[377305379,1754327441190,-500.0,0.00050992,120]
[377305380,1754327441200,-500.0,0.00050992,120]
[377305381,1754327441211,-500.0,0.00050992,120]
[377305382,1754327441221,-500.0,0.00050992,120]
[377305384,1754327441580,-500.0,0.00050992,120]
[377305385,1754327441593,-500.0,0.00050992,120]
[377305386,1754327441603,-500.0,0.00050992,120]
[377305387,1754327441612,-500.0,0.00050992,120]
[377305388,1754327441622,-500.0,0.00050992,120]
[377305389,1754327441633,-500.0,0.00050992,120]
[377305390,1754327441642,-500.0,0.00050992,120]
[377305391,1754327441652,-500.0,0.00050992,120]
[377305392,1754327441662,-500.0,0.00050992,120]
[377305393,1754327441672,-500.0,0.00050992,120]
[377305394,1754327441681,-500.0,0.00050992,120]
[377305395,1754327441691,-500.0,0.00050992,120]
[377305396,1754327441700,-500.0,0.00050992,120]
[377305397,1754327441710,-500.0,0.00050992,120]
[377305398,1754327441720,-500.0,0.00050992,120]
[377305400,1754327441729,-500.0,0.00050992,120]
[377305401,1754327441738,-500.0,0.00050992,120]
[377305402,1754327441748,-500.0,0.00050992,120]
[377305403,1754327441758,-500.0,0.00050992,120]
[377305404,1754327441768,-500.0,0.00050992,120]
[377305405,1754327441780,-500.0,0.00050992,120]
[377305406,1754327441790,-500.0,0.00050992,120]
[377305407,1754327441800,-500.0,0.00050992,120]
[377305408,1754327441810,-500.0,0.00050992,120]
[377305409,1754327441819,-500.0,0.00050992,120]
[377305410,1754327441829,-500.0,0.00050992,120]
[377305411,1754327441838,-500.0,0.00050992,120]
[377305412,1754327441847,-500.0,0.00050992,120]
[377305413,1754327441857,-500.0,0.00050992,120]
[377305414,1754327441867,-500.0,0.00050992,120]
[377305415,1754327441877,-500.0,0.00050992,120]
[377305416,1754327441886,-500.0,0.00050992,120]
[377305417,1754327441895,-500.0,0.00050992,120]
[377305418,1754327441905,-500.0,0.00050992,120]
[377305419,1754327441914,-500.0,0.00050992,120]
[377305420,1754327441924,-500.0,0.00050992,120]
[377305421,1754327441933,-500.0,0.00050992,120]
[377305422,1754327441943,-500.0,0.00050992,120]
[377305423,1754327441952,-500.0,0.00050992,120]
[377305424,1754327441961,-500.0,0.00050992,120]
[377305425,1754327441971,-500.0,0.00050992,120]
[377305426,1754327441980,-500.0,0.00050992,120]
[377305427,1754327441991,-500.0,0.00050992,120]
[377305428,1754327442000,-500.0,0.00050992,120]
[377305429,1754327442010,-500.0,0.00050992,120]
[377305430,1754327442020,-500.0,0.00050992,120]
[377305431,1754327442030,-500.0,0.00050992,120]
[377305432,1754327442040,-500.0,0.00050992,120]
[377305433,1754327442049,-500.0,0.00050992,120]
[377305434,1754327442058,-500.0,0.00050992,120]
[377305435,1754327442067,-500.0,0.00050992,120]
[377305436,1754327442077,-500.0,0.00050992,120]
[377305437,1754327442086,-500.0,0.00050992,120]
[377305438,1754327442095,-500.0,0.00050992,120]
[377305439,1754327442104,-500.0,0.00050992,120]
[377305440,1754327442113,-500.0,0.00050992,120]
[377305441,1754327442123,-500.0,0.00050992,120]
[377305442,1754327442133,-500.0,0.00050992,120]
[377305443,1754327442142,-500.0,0.00050992,120]
[377305444,1754327442151,-500.0,0.00050992,120]
[377305445,1754327442160,-500.0,0.00050992,120]
[377305446,1754327442169,-500.0,0.00050992,120]
[377305447,1754327442179,-500.0,0.00050992,120]
[377305448,1754327442188,-500.0,0.00050992,120]
[377305449,1754327442199,-500.0,0.00050992,120]
[377305450,1754327442208,-500.0,0.00050992,120]
[377305452,1754327442218,-500.0,0.00050992,120]
[377305453,1754327442227,-500.0,0.00050992,120]
[377305455,1754327442236,-500.0,0.00050992,120]
[377305456,1754327442246,-500.0,0.00050992,120]
[377305457,1754327442255,-500.0,0.00050992,120]
[377305458,1754327442265,-500.0,0.00050992,120]
[377305459,1754327442274,-500.0,0.00050992,120]
[377305460,1754327442285,-500.0,0.00050992,120]
[377305461,1754327442295,-500.0,0.00050992,120]
[377305462,1754327442304,-500.0,0.00050992,120]
[377305463,1754327442313,-500.0,0.00050992,120]
[377305464,1754327442323,-500.0,0.00050992,120]
[377305465,1754327442332,-500.0,0.00050992,120]
[377305466,1754327442341,-646.0,0.00050992,120]
[377305467,1754327442351,-500.0,0.00050992,120]
[377305468,1754327442360,-500.0,0.00050992,120]
[377305469,1754327442369,-500.0,0.00050992,120]
[377305470,1754327442379,-500.0,0.00050992,120]
[377305471,1754327442388,-500.0,0.00050992,120]
[377305472,1754327442397,-500.0,0.00050992,120]
[377305473,1754327442406,-598.0,0.00050992,120]
[377305474,1754327442415,-500.0,0.00050992,120]
[377305475,1754327442425,-500.0,0.00050992,120]
[377305476,1754327442434,-500.0,0.00050992,120]
[377305477,1754327442443,-500.0,0.00050992,120]